bitfinex/quotes_SOLUSD_20241215
["timestamp","ask_amount","ask_price","bid_price","bid_amount"]
[1734228920125,23.776884,221.32,221.21,20.0]
[1734228920326,23.776884,221.32,221.23,8.62068821]
[1734228921796,23.776884,221.32,221.25,8.62068821]
[1734228924929,1.6254,221.33,221.25,8.62068821]
[1734228926231,1.6254,221.33,221.27,8.62068821]
[1734228926612,1.6254,221.33,221.22,0.25098]
[1734228926807,1.6254,221.33,221.26,8.62068821]
[1734228930141,1.6254,221.33,221.28,8.62068821]
[1734228931440,1.6254,221.33,221.24,0.67784354]
[1734228931602,1.6254,221.33,221.27,8.62068821]
[1734228936827,12.09212882,221.46,221.29,8.62068821]
[1734228937012,23.776884,221.39,221.29,8.62068821]
[1734228939038,1.63,221.4,221.31,8.62068821]
[1734228940336,1.63,221.4,221.29,8.62068821]
[1734228941832,1.63,221.4,221.24,11.2997]
[1734228941833,23.776884,221.39,221.27,20.0]
[1734228942043,23.776884,221.39,221.28,38.62068821]
[1734228943526,1.63,221.4,221.34,8.62068821]
[1734228943844,1.5063,221.46,221.36,8.62068821]
[1734228945515,23.776884,221.45,221.36,8.62068821]
[1734228948009,1.5063,221.46,221.36,8.62068821]
[1734228948225,1.5063,221.46,221.38,8.62068821]
[1734228953754,1.5063,221.46,221.36,8.62068821]
[1734228954472,13.42922803,221.54,221.37,8.2656]
[1734228954649,23.776884,221.47,221.38,8.62068821]
[1734228956369,1.6321,221.54,221.38,8.62068821]
[1734228957455,1.6321,221.54,221.38,10.83068821]
[1734228958035,1.6321,221.54,221.4,8.62068821]
[1734228960840,1.6321,221.54,221.39,8.62068821]
[1734228962564,1.6321,221.54,221.4,8.62068821]
[1734228967939,1.6321,221.54,221.37,8.2656]
[1734228968134,23.776884,221.47,221.37,8.2656]
[1734228968341,23.776884,221.47,221.37,6.6022]
[1734228968650,0.25098,221.46,221.37,6.6022]
[1734228970170,0.25098,221.46,221.34,8.62068821]
[1734228972268,20.0,221.44,221.32,8.0552]
[1734228972573,23.776884,221.45,221.33,30.0]
[1734228972574,23.776884,221.41,221.33,30.0]
[1734228973364,23.776884,221.41,221.31,8.62068821]
[1734228975291,23.776884,221.41,221.27,10.71114014]
[1734228975447,23.776884,221.41,221.28,30.0]
[1734228975646,23.776884,221.41,221.3,8.62068821]
[1734228976257,0.12549,221.4,221.28,30.0]
[1734228976467,0.25098,221.4,221.3,8.62068821]
[1734228983469,23.776884,221.41,221.3,8.62068821]
[1734228984874,0.25098,221.4,221.3,8.62068821]
[1734228985285,0.25098,221.4,221.28,38.62068821]
[1734228985491,24.027864,221.38,221.28,30.0]
[1734228985795,24.027864,221.38,221.28,38.62068821]
[1734228986880,24.027864,221.38,221.28,8.62068821]
[1734228993674,24.027864,221.38,221.26,8.62068821]
[1734228995192,24.027864,221.38,221.24,2.21]
[1734228995400,24.027864,221.38,221.25,8.62068821]
[1734229000382,24.027864,221.38,221.27,8.62068821]
[1734229008590,20.0,221.35,221.22,6.3839]
[1734229008792,43.776884,221.3,221.17,7.9385]
[1734229009012,43.776884,221.3,221.23,8.62068821]
[1734229009013,20.0,221.3,221.23,8.62068821]
[1734229010100,20.0,221.3,221.22,8.62068821]
[1734229011682,20.0,221.3,221.2,8.62068821]
[1734229012496,20.0,221.3,221.17,7.9385]
[1734229012703,23.776884,221.29,221.19,8.62068821]
[1734229014323,23.776884,221.29,221.18,8.62068821]
[1734229017010,23.776884,221.29,221.19,8.62068821]
[1734229020630,20.0,221.3,221.16,0.67809129]
[1734229020934,7.8188,221.33,221.26,8.62068821]
[1734229020935,1.5418,221.33,221.26,8.62068821]
[1734229025036,1.5418,221.33,221.27,8.62068821]
[1734229025814,7.8037,221.38,221.3,8.62068821]
[1734229026039,1.5267,221.43,221.33,20.0]
[1734229026409,1.5267,221.43,221.31,8.62068821]
[1734229026635,1.5267,221.43,221.26,6.3429]
[1734229026636,1.5267,221.43,221.3,8.62068821]
[1734229026841,0.12549,221.42,221.29,28.62068821]
[1734229027440,24.027864,221.42,221.29,28.62068821]
[1734229028453,24.027864,221.42,221.3,8.62068821]
[1734229031340,24.027864,221.42,221.31,8.62068821]
[1734229032151,24.027864,221.42,221.29,20.0]
[1734229033557,24.027864,221.42,221.3,8.62068821]
[1734229038057,1.5267,221.36,221.21,1.79483314]
[1734229038244,23.776884,221.35,221.26,8.62068821]
[1734229038955,23.776884,221.35,221.21,0.67787713]
[1734229039279,23.776884,221.35,221.26,8.62068821]
[1734229041847,23.776884,221.35,221.27,8.62068821]
[1734229042073,1.5267,221.36,221.25,20.0]
[1734229042364,1.5267,221.36,221.28,8.62068821]
[1734229042550,1.5267,221.36,221.27,8.62068821]
[1734229044646,1.5267,221.36,221.28,8.62068821]
[1734229044870,1.5267,221.36,221.29,8.62068821]
[1734229045046,1.5267,221.36,221.3,8.62068821]
[1734229046276,1.5267,221.36,221.31,8.62068821]
[1734229048098,6.1072,221.41,221.31,8.62068821]
[1734229048099,7.6725,221.41,221.31,8.62068821]
[1734229051501,7.6725,221.41,221.32,8.62068821]
[1734229053289,7.6725,221.41,221.31,8.62068821]
[1734229053498,23.776884,221.4,221.3,8.62068821]
[1734229059580,23.776884,221.4,221.26,0.67775535]
[1734229059801,23.776884,221.4,221.29,8.62068821]
[1734229062910,23.776884,221.4,221.23,0.67775312]
[1734229062911,0.25098,221.39,221.23,0.67775312]
[1734229063114,24.027864,221.37,221.26,8.62068821]
[1734229066209,24.027864,221.37,221.28,8.62068821]
[1734229068697,24.027864,221.37,221.3,17.8]
[1734229069497,21.5343,221.38,221.3,26.42068821]
[1734229069921,1.5343,221.38,221.3,26.42068821]
[1734229070231,1.5343,221.38,221.32,8.62068821]
[1734229073297,1.5343,221.38,221.33,8.62068821]
[1734229074705,23.902374,221.45,221.35,8.62068821]
[1734229077823,23.902374,221.45,221.33,8.62068821]
[1734229078226,23.902374,221.45,221.34,8.62068821]
[1734229079405,23.902374,221.45,221.33,20.0]
[1734229079626,23.902374,221.45,221.34,8.62068821]
[1734229082119,23.902374,221.45,221.33,20.0]
[1734229082321,23.902374,221.45,221.35,8.62068821]
[1734229083820,6.1159,221.46,221.35,8.62068821]
[1734229086016,6.1159,221.46,221.37,8.62068821]
[1734229089141,6.1159,221.46,221.33,20.67755915]
[1734229089536,6.1159,221.46,221.37,8.62068821]
[1734229091476,6.1159,221.46,221.36,8.62068821]
[1734229094817,23.776884,221.45,221.33,20.0]
[1734229095048,23.776884,221.45,221.34,8.62068821]
[1734229095459,23.776884,221.45,221.35,8.62068821]
[1734229096066,23.276884,221.45,221.35,8.62068821]
[1734229097261,23.276884,221.45,221.36,8.62068821]
[1734229099849,6.1159,221.46,221.38,8.62068821]
[1734229100159,6.1159,221.46,221.39,8.62068821]
[1734229101440,1.548,221.47,221.4,8.62068821]
[1734229102259,1.548,221.47,221.41,8.62068821]
[1734229103834,1.548,221.47,221.42,8.62068821]
[1734229104032,1.548,221.47,221.44,8.62068821]
[1734229104253,70.843332,221.48,221.45,8.62068821]
[1734229104559,70.843332,221.48,221.44,8.62068821]
[1734229104762,70.843332,221.48,221.45,8.62068821]
[1734229105238,70.843332,221.48,221.44,8.62068821]
[1734229107553,70.843332,221.48,221.45,8.62068821]
[1734229112360,70.843332,221.48,221.39,20.0]
[1734229112564,70.843332,221.48,221.42,8.62068821]
[1734229113279,70.843332,221.48,221.43,8.62068821]
[1734229113652,70.843332,221.48,221.42,8.62068821]
[1734229114174,70.843332,221.48,221.41,8.62068821]
[1734229114772,70.843332,221.48,221.4,8.62068821]
[1734229116261,70.843332,221.48,221.41,8.62068821]
[1734229116481,70.843332,221.48,221.42,8.62068821]
[1734229118281,70.843332,221.48,221.43,8.62068821]
[1734229118585,70.843332,221.48,221.45,8.62068821]
[1734229120259,70.843332,221.48,221.44,8.62068821]
[1734229120459,70.843332,221.48,221.42,8.62068821]
[1734229121779,70.843332,221.48,221.43,8.62068821]
[1734229122572,70.843332,221.48,221.46,8.62068821]
[1734229126403,70.843332,221.48,221.47,8.62068821]
[1734229129510,70.343332,221.48,221.47,8.62068821]
[1734229130415,70.343332,221.48,221.47,26.43068821]
[1734229131389,70.343332,221.48,221.47,26.55617821]
[1734229133188,70.343332,221.48,221.47,8.74617821]
[1734229136315,70.343332,221.48,221.47,26.55617821]
[1734229137089,70.343332,221.48,221.47,51.13565149]
[1734229138515,70.343332,221.48,221.47,26.68166821]
[1734229138692,70.343332,221.48,221.47,26.43068821]
[1734229140421,70.343332,221.48,221.47,26.55617821]
[1734229141825,70.343332,221.48,221.47,51.13565596]
[1734229143822,70.343332,221.48,221.47,52.99170464]
[1734229144078,0.5528241,221.55,221.52,20.0]
[1734229144210,0.5528241,221.55,221.54,8.62068821]
[1734229146413,0.5528241,221.55,221.54,22.41068821]
[1734229146813,0.5528241,221.55,221.54,57.01893105]
[1734229147118,0.5528241,221.55,221.54,22.41068821]
[1734229150456,0.5528241,221.55,221.54,13.79]
[1734229150737,0.5528241,221.55,221.54,22.41068821]
[1734229151323,0.5528241,221.55,221.54,8.62068821]
[1734229154325,0.5528241,221.55,221.54,26.23068821]
[1734229156044,0.5528241,221.55,221.54,17.61]
[1734229156456,0.5528241,221.55,221.54,26.23068821]
[1734229157422,0.5528241,221.55,221.54,17.61]
[1734229157627,0.5528241,221.55,221.54,26.23068821]
[1734229158467,0.5528241,221.55,221.54,17.61]
[1734229159638,0.5528241,221.55,221.53,8.62068821]
[1734229160141,0.5528241,221.55,221.54,8.62068821]
[1734229162650,0.5528241,221.55,221.54,22.59068821]
[1734229166349,0.5528241,221.55,221.54,57.19893105]
[1734229167056,0.5528241,221.55,221.54,22.71617821]
[1734229170144,0.5528241,221.55,221.54,57.19893105]
[1734229171242,0.5528241,221.55,221.54,22.71617821]
[1734229174845,0.5528241,221.55,221.54,14.09549]
[1734229175035,0.5528241,221.55,221.54,22.71617821]
[1734229175950,0.5528241,221.55,221.54,22.84166821]
[1734229176152,0.5528241,221.55,221.54,13.97]
[1734229176577,0.5528241,221.55,221.54,22.59068821]
[1734229183264,0.5528241,221.55,221.54,13.97]
[1734229184404,0.5528241,221.55,221.54,22.59068821]
[1734229191269,2.41e-05,221.55,221.54,57.32442105]
[1734229196656,2.41e-05,221.55,221.54,81.10130505]
[1734229196778,66.7784561,221.56,221.54,81.10130505]
[1734229197106,61.0983561,221.56,221.55,43.93265221]
[1734229197292,58.6198561,221.56,221.55,43.93265221]
[1734229198223,56.3496561,221.56,221.55,43.93265221]
[1734229198380,51.8092561,221.56,221.55,43.93265221]
[1734229198581,49.5390561,221.56,221.55,43.93265221]
[1734229198993,47.2681561,221.56,221.55,43.93265221]
[1734229200320,70.843332,221.64,221.62,20.0]
[1734229200512,70.843332,221.64,221.63,8.62068821]
[1734229202802,70.843332,221.64,221.62,28.62068821]
[1734229203900,70.843332,221.64,221.63,8.62068821]
[1734229211542,70.843332,221.64,221.55,28.80626551]
[1734229211543,70.843332,221.64,221.54,2.65571432]
[1734229211822,70.843332,221.64,221.5,15.67900677]
[1734229211823,70.843332,221.64,221.55,8.62068821]
[1734229213424,23.776884,221.63,221.55,8.62068821]
[1734229214437,1.5193,221.62,221.52,8.62068821]
[1734229214733,0.25098,221.6,221.51,8.62068821]
[1734229214895,0.25098,221.6,221.5,8.62068821]
[1734229216215,0.25098,221.6,221.48,20.0]
[1734229216416,0.25098,221.6,221.5,8.62068821]
[1734229217211,23.776884,221.57,221.48,8.62068821]
[1734229219952,23.776884,221.57,221.43,11.2902]
[1734229219953,23.776884,221.57,221.49,8.62068821]
[1734229220355,23.776884,221.57,221.46,20.0]
[1734229220521,23.776884,221.57,221.48,8.62068821]
[1734229223658,1.6013,221.55,221.44,20.0]
[1734229223958,1.6013,221.55,221.44,8.62068821]
[1734229223959,23.776884,221.54,221.44,8.62068821]
[1734229225456,1.6013,221.55,221.41,17.78290358]
[1734229225457,1.6013,221.55,221.48,8.62068821]
[1734229225760,1.6013,221.55,221.49,8.62068821]
[1734229226054,1.6013,221.55,221.41,18.46024413]
[1734229226055,1.6013,221.55,221.47,8.62068821]
[1734229230478,1.6013,221.55,221.49,8.62068821]
[1734229233946,1.6013,221.55,221.47,8.62068821]
[1734229235552,1.6013,221.55,221.49,8.62068821]
[1734229239976,24.027864,221.54,221.44,0.67716227]
[1734229240149,24.027864,221.54,221.38,11.2924]
[1734229240347,24.027864,221.54,221.37,6.6013]
[1734229240660,24.027864,221.52,221.4,8.62068821]
[1734229240974,24.027864,221.5,221.4,8.62068821]
[1734229242351,6.3758,221.51,221.42,8.62068821]
[1734229242950,6.3758,221.51,221.44,8.62068821]
[1734229250176,21.6013,221.53,221.4,20.0]
[1734229250382,23.776884,221.52,221.43,8.62068821]
[1734229253063,23.776884,221.52,221.4,20.0]
[1734229253382,23.776884,221.52,221.43,8.62068821]
[1734229260565,23.776884,221.52,221.37,11.293]
[1734229260757,0.12549,221.51,221.4,8.62068821]
[1734229262193,23.776884,221.52,221.42,8.62068821]
[1734229267093,0.12549,221.51,221.36,31.41889]
[1734229267295,0.25098,221.51,221.36,20.0]
[1734229267476,30.156184,221.49,221.39,8.62068821]
[1734229268398,30.156184,221.49,221.36,20.0]
[1734229268604,30.156184,221.49,221.39,8.62068821]
[1734229270902,6.3793,221.49,221.41,8.62068821]
[1734229271121,6.3793,221.49,221.43,8.62068821]
[1734229271410,1.5954,221.5,221.43,8.62068821]
[1734229273500,1.5954,221.5,221.44,8.62068821]
[1734229274281,1.5954,221.5,221.43,8.62068821]
[1734229277211,1.5954,221.5,221.36,20.0]
[1734229277505,1.5954,221.5,221.39,8.62068821]
[1734229278184,1.5954,221.5,221.36,20.0]
[1734229278385,1.5954,221.5,221.43,8.62068821]
[1734229283289,23.902374,221.49,221.36,22.76778431]
[1734229283597,23.902374,221.49,221.36,8.62068821]
[1734229283598,0.12549,221.48,221.36,8.62068821]
[1734229284001,6.1857,221.47,221.32,35.34232769]
[1734229284308,6.1857,221.47,221.35,8.62068821]
[1734229284309,1.5972,221.45,221.35,8.62068821]
[1734229286934,24.027864,221.44,221.33,8.62068821]
[1734229287730,24.027864,221.44,221.28,2.72963901]
[1734229288023,24.027864,221.44,221.31,8.62068821]
[1734229288598,23.902374,221.4,221.31,8.62068821]
[1734229289009,23.902374,221.4,221.27,6.2809]
[1734229289316,23.902374,221.4,221.32,8.62068821]
[1734229291623,23.902374,221.4,221.27,6.2809]
[1734229291922,20.12549,221.44,221.31,8.62068821]
[1734229292124,0.12549,221.42,221.31,8.62068821]
[1734229292310,0.25098,221.42,221.31,8.62068821]
[1734229292828,0.12549,221.42,221.33,8.62068821]
[1734229293125,23.776884,221.43,221.33,8.62068821]
[1734229293319,23.776884,221.43,221.27,18.25666453]
[1734229293527,23.776884,221.43,221.32,8.62068821]
[1734229294254,0.25098,221.42,221.27,17.5789]
[1734229294428,0.25098,221.42,221.31,8.62068821]
[1734229297823,1.5972,221.41,221.31,8.62068821]
[1734229300010,1.5972,221.41,221.32,8.62068821]
[1734229306218,1.5972,221.41,221.33,8.62068821]
[1734229311916,1.5972,221.41,221.27,18.25662951]
[1734229311917,1.5972,221.41,221.32,8.62068821]
[1734229315547,1.5972,221.41,221.33,8.62068821]
[1734229315727,1.5972,221.41,221.34,8.62068821]
[1734229316955,1.5972,221.41,221.36,8.62068821]
[1734229317331,1.5972,221.41,221.37,17.79]
[1734229324452,1.5972,221.41,221.32,8.62068821]
[1734229324636,1.5972,221.41,221.34,17.8]
[1734229328669,1.5972,221.41,221.32,8.62068821]
[1734229331684,1.5972,221.41,221.34,0.85]
[1734229335655,23.902374,221.4,221.34,0.85]
[1734229336682,1.5972,221.41,221.34,0.85]
[1734229340459,1.5972,221.41,221.35,8.62068821]
[1734229340658,1.5972,221.41,221.37,0.84]
[1734229342286,1.5972,221.41,221.33,38.58068821]
[1734229344169,1.5972,221.41,221.33,29.96]
[1734229348188,7.6619,221.41,221.33,29.96]
[1734229350771,24.027864,221.4,221.33,29.96]
[1734229351014,20.0,221.33,221.22,7.07095338]
[1734229351172,20.0,221.33,221.2,42.42572032]
[1734229351173,20.0,221.33,221.24,2.24]
[1734229351996,20.0,221.33,221.26,8.62068821]
[1734229352195,20.0,221.33,221.27,2.24]
[1734229353777,1.6543,221.34,221.29,8.62068821]
[1734229353976,1.6543,221.34,221.3,2.24]
[1734229355810,23.902374,221.33,221.3,2.24]
[1734229356028,1.6543,221.34,221.3,2.24]
[1734229357704,1.6543,221.34,221.27,28.65]
[1734229357913,1.6543,221.34,221.27,37.27068821]
[1734229360894,1.6543,221.34,221.27,28.65]
[1734229361088,1.6543,221.34,221.27,37.27068821]
[1734229364804,1.6543,221.34,221.27,8.62068821]
[1734229367423,1.6543,221.34,221.25,8.62068821]
[1734229367919,1.6543,221.34,221.27,3.5]
[1734229372088,1.6543,221.34,221.27,12.12068821]
[1734229375704,24.027864,221.33,221.27,3.5]
[1734229376307,23.902374,221.33,221.27,3.5]
[1734229377494,1.6543,221.34,221.27,3.5]
[1734229383601,21.6322,221.39,221.28,8.62068821]
[1734229384298,0.12549,221.38,221.28,8.62068821]
[1734229385105,23.902374,221.38,221.28,8.62068821]
[1734229386812,23.902374,221.38,221.27,3.5]
[1734229390523,23.902374,221.38,221.28,8.62068821]
[1734229396430,23.902374,221.38,221.27,3.5]
[1734229396642,23.902374,221.38,221.27,12.12068821]
[1734229396856,23.902374,221.38,221.29,8.62068821]
[1734229398918,23.902374,221.38,221.27,3.5]
[1734229399314,23.902374,221.38,221.28,8.62068821]
[1734229402021,23.902374,221.38,221.27,3.5]
[1734229402340,23.902374,221.38,221.28,8.62068821]
[1734229409975,23.902374,221.38,221.27,3.5]
[1734229410177,23.902374,221.38,221.28,8.62068821]
[1734229414290,1.6322,221.39,221.28,8.62068821]
[1734229419991,1.6322,221.39,221.29,8.62068821]
[1734229421940,1.6322,221.39,221.31,8.62068821]
[1734229425698,1.6322,221.39,221.27,14.7982]
[1734229425915,1.6322,221.39,221.3,8.62068821]
[1734229426489,1.6322,221.39,221.27,14.7982]
[1734229426703,1.6322,221.39,221.3,8.62068821]
[1734229427480,1.6322,221.39,221.27,14.7982]
[1734229427703,1.6322,221.39,221.29,8.62068821]
[1734229432400,1.6322,221.39,221.31,8.62068821]
[1734229437129,1.6322,221.39,221.3,8.62068821]
[1734229440193,1.6322,221.39,221.32,8.62068821]
[1734229444097,1.6322,221.39,221.32,23.08068821]
[1734229444614,8.0698,221.44,221.34,8.62068821]
[1734229444807,8.0698,221.44,221.35,8.62068821]
[1734229445303,8.0698,221.44,221.34,8.62068821]
[1734229446323,1.561,221.44,221.34,8.62068821]
[1734229446529,1.561,221.44,221.36,8.62068821]
[1734229450016,1.561,221.44,221.37,8.62068821]
[1734229450317,1.561,221.44,221.39,8.62068821]
[1734229450816,6.0698,221.48,221.4,8.62068821]
[1734229451120,6.0698,221.48,221.39,8.62068821]
[1734229453313,6.0698,221.48,221.4,8.62068821]
[1734229453740,6.0698,221.48,221.39,8.62068821]
[1734229455029,6.0698,221.48,221.4,8.62068821]
[1734229455607,1.561,221.49,221.35,0.80290061]
[1734229455825,1.561,221.49,221.42,8.62068821]
[1734229457323,1.561,221.49,221.43,8.62068821]
[1734229457639,1.561,221.49,221.42,8.62068821]
[1734229457937,1.561,221.54,221.45,8.62068821]
[1734229458139,1.561,221.54,221.46,8.62068821]
[1734229459342,1.561,221.54,221.39,13.61443146]
[1734229459652,1.561,221.54,221.44,8.62068821]
[1734229460132,1.561,221.54,221.45,8.62068821]
[1734229463928,23.776884,221.53,221.42,20.0]
[1734229464131,23.776884,221.53,221.4,8.62068821]
[1734229464474,1.561,221.54,221.37,6.76087144]
[1734229464475,23.776884,221.5,221.39,8.62068821]
[1734229464749,23.776884,221.5,221.38,8.62068821]
[1734229465437,23.776884,221.5,221.39,8.62068821]
[1734229466931,23.776884,221.5,221.4,8.62068821]
[1734229467361,23.776884,221.5,221.39,8.62068821]
[1734229470061,1.5672,221.49,221.39,8.62068821]
[1734229470631,23.776884,221.48,221.37,8.62068821]
[1734229474341,23.776884,221.48,221.38,8.62068821]
[1734229474560,0.25098,221.47,221.35,20.0]
[1734229474867,0.25098,221.47,221.36,8.62068821]
[1734229475660,0.25098,221.47,221.37,8.62068821]
[1734229475870,0.25098,221.47,221.38,8.62068821]
[1734229482174,0.12549,221.47,221.38,8.62068821]
[1734229482380,23.776884,221.48,221.39,8.62068821]
[1734229482676,23.776884,221.48,221.35,20.0]
[1734229482864,23.776884,221.48,221.37,8.62068821]
[1734229485086,0.25098,221.47,221.35,20.0]
[1734229485263,0.25098,221.47,221.37,8.62068821]
[1734229487852,0.25098,221.47,221.38,8.62068821]
[1734229490498,23.776884,221.48,221.39,8.62068821]
[1734229491294,0.25098,221.43,221.28,1.5136]
[1734229491608,0.25098,221.43,221.32,8.62068821]
[1734229491778,1.5425,221.42,221.32,8.62068821]
[1734229491976,30.407084,221.41,221.26,0.67769483]
[1734229492188,30.407084,221.41,221.3,8.62068821]
[1734229493709,30.407084,221.41,221.26,20.0]
[1734229493912,30.407084,221.41,221.31,8.62068821]
[1734229494074,30.407084,221.41,221.3,8.62068821]
[1734229495207,6.6302,221.41,221.33,8.62068821]
[1734229495412,6.6302,221.41,221.26,20.0]
[1734229495413,6.6302,221.41,221.34,8.62068821]
[1734229495707,6.6302,221.41,221.31,8.62068821]
[1734229495708,23.776884,221.4,221.31,8.62068821]
[1734229497504,23.776884,221.4,221.32,8.62068821]
[1734229501818,23.776884,221.4,221.26,20.67775123]
[1734229502289,23.776884,221.4,221.3,8.62068821]
[1734229503732,0.25098,221.39,221.29,8.62068821]
[1734229505320,0.25098,221.39,221.3,8.62068821]
[1734229512734,0.25098,221.39,221.24,20.67774993]
[1734229512939,24.027864,221.37,221.24,20.0]
[1734229513230,25.157164,221.37,221.27,8.62068821]
[1734229514815,25.157164,221.37,221.2,15.89377161]
[1734229514816,0.12549,221.33,221.2,15.89377161]
[1734229515003,23.776884,221.3,221.17,2.30398942]
[1734229515206,23.776884,221.3,221.24,8.62068821]
[1734229517337,23.776884,221.3,221.23,8.62068821]
[1734229518724,1.5401,221.29,221.23,8.62068821]
[1734229521514,1.5401,221.29,221.22,8.62068821]
[1734229521740,1.5401,221.29,221.25,8.62068821]
[1734229521945,1.5401,221.34,221.26,8.62068821]
[1734229522453,1.5401,221.34,221.25,8.62068821]
[1734229523744,24.027864,221.33,221.19,20.0]
[1734229523951,24.027864,221.33,221.23,8.62068821]
[1734229524254,24.027864,221.33,221.19,20.0]
[1734229524450,24.027864,221.33,221.23,8.62068821]
[1734229527045,24.027864,221.33,221.19,20.67798471]
[1734229527264,24.027864,221.33,221.23,8.62068821]
[1734229527460,23.776884,221.33,221.24,8.62068821]
[1734229527668,23.776884,221.33,221.25,8.62068821]
[1734229528166,1.5401,221.34,221.26,8.62068821]
[1734229529662,1.5401,221.34,221.27,8.62068821]
[1734229529861,1.5401,221.34,221.25,8.62068821]
[1734229530162,1.5401,221.34,221.19,20.0]
[1734229530163,1.5401,221.34,221.24,8.62068821]
[1734229531064,1.5401,221.34,221.25,8.62068821]
[1734229532834,1.5401,221.34,221.24,8.62068821]
[1734229533646,24.027864,221.33,221.17,2.30389685]
[1734229533852,24.027864,221.33,221.21,8.62068821]
[1734229535172,25.157364,221.33,221.21,8.62068821]
[1734229536069,25.157364,221.33,221.23,8.62068821]
[1734229536278,24.906384,221.33,221.24,8.62068821]
[1734229537054,24.906384,221.33,221.23,8.62068821]
[1734229537449,24.906384,221.33,221.24,8.62068821]
[1734229538787,1.5401,221.34,221.2,0.67788699]
[1734229539077,1.5401,221.34,221.27,8.62068821]
[1734229539279,1.5401,221.34,221.26,8.62068821]
[1734229540358,1.5401,221.34,221.25,8.62068821]
[1734229545186,1.5401,221.34,221.22,0.67781345]
[1734229545686,23.776884,221.33,221.24,8.62068821]
[1734229547583,0.12549,221.32,221.19,20.0]
[1734229547884,0.12549,221.32,221.22,8.62068821]
[1734229547885,0.25098,221.32,221.22,8.62068821]
[1734229548091,0.25098,221.32,221.19,0.67798651]
[1734229548384,0.25098,221.32,221.21,8.62068821]
[1734229551091,1.5467,221.28,221.17,0.67801941]
[1734229551410,1.5467,221.28,221.22,8.62068821]
[1734229553605,1.5467,221.28,221.21,8.62068821]
[1734229557212,1.5467,221.28,221.17,20.67797613]
[1734229557419,1.5467,221.28,221.21,8.62068821]
[1734229560019,1.5467,221.28,221.17,20.67797613]
[1734229560320,1.5467,221.28,221.2,8.62068821]
[1734229565537,23.776884,221.26,221.16,20.0]
[1734229565820,23.776884,221.26,221.18,8.62068821]
[1734229566326,6.506,221.27,221.2,8.62068821]
[1734229566499,6.506,221.27,221.15,0.67800273]
[1734229566694,6.506,221.27,221.2,8.62068821]
[1734229568532,6.506,221.27,221.17,20.0]
[1734229568710,6.506,221.27,221.18,8.62068821]
[1734229568907,6.506,221.27,221.17,20.0]
[1734229569214,6.506,221.27,221.18,8.62068821]
[1734229572029,6.506,221.27,221.19,8.62068821]
[1734229572855,6.506,221.27,221.18,8.62068821]
[1734229573032,6.506,221.27,221.15,0.67800273]
[1734229573033,6.506,221.27,221.16,20.0]
[1734229573223,6.506,221.27,221.17,8.62068821]
[1734229574219,6.506,221.27,221.15,20.0]
[1734229574443,6.506,221.27,221.18,8.62068821]
[1734229578058,6.506,221.27,221.19,8.62068821]
[1734229580745,6.506,221.27,221.22,8.62068821]
[1734229581064,1.5467,221.28,221.16,0.67796152]
[1734229581362,1.5467,221.28,221.2,8.62068821]
[1734229585943,1.5467,221.28,221.21,8.62068821]
[1734229586149,1.5467,221.28,221.2,8.62068821]
[1734229588239,1.5467,221.28,221.21,8.62068821]
[1734229588458,1.5467,221.28,221.22,8.62068821]
[1734229589358,5.0,221.38,221.18,0.67794381]
[1734229589359,1.5564,221.37,221.27,8.62068821]
[1734229589654,1.5564,221.37,221.3,8.62068821]
[1734229589863,1.5564,221.37,221.29,8.62068821]
[1734229590938,21.5564,221.37,221.27,8.62068821]
[1734229591342,21.5564,221.37,221.24,20.67773724]
[1734229591558,23.776884,221.36,221.24,20.67773724]
[1734229591765,23.776884,221.36,221.26,8.62068821]
[1734229594768,23.776884,221.36,221.27,8.62068821]
[1734229595780,23.776884,221.36,221.26,8.62068821]
[1734229596450,23.776884,221.36,221.27,8.62068821]
[1734229596657,23.776884,221.36,221.26,8.62068821]
[1734229598152,23.776884,221.36,221.27,8.62068821]
[1734229598958,23.776884,221.36,221.24,20.67773724]
[1734229599152,23.776884,221.36,221.24,0.67773724]